fUSD/lending_fUSD_20240628
["ID","MTS","AMOUNT","RATE_DAILY","PERIOD"]
[330546233,1719561162643,-892.56,0.00021369,2]
[330546234,1719561162653,-641.78229546,0.00021369,2]
[330546235,1719561162662,-1231.54,0.00021369,2]
[330546236,1719561162672,-895.8,0.00021369,2]
[330546237,1719561162681,-500.0,0.00021369,2]
[330546238,1719561162691,-2097.83,0.00021369,2]
[330546239,1719561162701,-500.0,0.00021369,2]
[330546240,1719561162710,-500.0,0.00021369,2]
[330546241,1719561162719,-3334.25,0.00021369,2]
[330546242,1719561162728,-3150.03,0.00021369,2]
[330546243,1719561162738,-500.0,0.00021369,2]
[330546244,1719561162747,-500.0,0.00021369,2]
[330546245,1719561162757,-610.61,0.00021369,2]
[330546246,1719561162766,-500.0,0.00021369,2]
[330546247,1719561162776,-1099.72,0.00021369,2]
[330546248,1719561162786,-500.0,0.00021369,2]
[330546249,1719561162798,-1552.28,0.00021369,2]
[330546250,1719561162807,-500.0,0.00021369,2]
[330546251,1719561162816,-735.24,0.00021369,2]
[330546252,1719561162826,-1827.69,0.00021369,2]
[330546253,1719561162835,-2422.64,0.00021369,2]
[330546254,1719561162845,-3657.77,0.00021369,2]
[330546255,1719561162858,-500.0,0.00021369,2]
[330546256,1719561162867,-500.0,0.00021369,2]
[330546257,1719561162877,-2088.49,0.00021369,2]
[330546258,1719561162886,-14987.84,0.00021369,2]
[330546259,1719561162897,-561.79,0.00021369,2]
[330546260,1719561162906,-500.0,0.00021369,2]
[330546261,1719561162916,-890.94,0.00021369,2]
[330546262,1719561162926,-1894.39,0.00021369,2]
[330546263,1719561162938,-1243.28,0.00021369,2]
[330546264,1719561162947,-500.0,0.00021369,2]
[330546265,1719561162956,-2029.23,0.00021369,2]
[330546266,1719561162966,-1128.27,0.00021369,2]
[330546267,1719561162978,-604.19,0.00021369,2]
[330546268,1719561162988,-2561.23,0.00021369,2]
[330546269,1719561162998,-500.0,0.00021369,2]
[330546270,1719561163007,-1302.81,0.00021369,2]
[330546271,1719561163017,-500.0,0.00021369,2]
[330546272,1719561163026,-2467.25,0.00021369,2]
[330546273,1719561163035,-580.74,0.00021369,2]
[330546274,1719561163045,-2378.96,0.00021369,2]
[330546275,1719561163056,-519.05,0.00021369,2]
[330546276,1719561163066,-696.42,0.00021369,2]
[330546277,1719561163076,-1077.61,0.00021369,2]
[330546278,1719561163085,-3444.9,0.00021369,2]
[330546279,1719561163095,-500.0,0.00021369,2]
[330546280,1719561163104,-1810.22,0.00021369,2]
[330546281,1719561163113,-878.91,0.00021369,2]
[330546282,1719561163122,-5919.42,0.00021369,2]
[330546283,1719561163132,-931.76,0.00021369,2]
[330546284,1719561163141,-1058.14,0.00021369,2]
[330546285,1719561163151,-1072.86,0.00021369,2]
[330546286,1719561163161,-1191.34,0.00021369,2]
[330546287,1719561163170,-3215.98,0.00021369,2]
[330546288,1719561163179,-1586.1,0.00021369,2]
[330546289,1719561163189,-500.0,0.00021369,2]
[330546290,1719561163198,-687.47,0.00021369,2]
[330546291,1719561163207,-12606.71,0.00021369,2]
[330546292,1719561163217,-1219.48,0.00021369,2]
[330546293,1719561163226,-836.18,0.00021369,2]
[330546294,1719561163235,-625.82,0.00021369,2]
[330546295,1719561163245,-1319.12,0.00021369,2]
[330546296,1719561163255,-1059.97,0.00021369,2]
[330546297,1719561163265,-1041.16,0.00021369,2]
[330546298,1719561163275,-1776.67,0.00021369,2]
[330546299,1719561163285,-524.31797131,0.00021369,2]
[330546300,1719561163295,-500.0,0.00021369,2]
[330546301,1719561163306,-500.0,0.00021369,2]
[330546302,1719561163315,-833.16,0.00021369,2]
[330546303,1719561163326,-852.24,0.00021369,2]
[330546304,1719561163335,-832.89,0.00021369,2]
[330546305,1719561163344,-667.48,0.00021369,2]
[330546306,1719561163354,-500.0,0.00021369,2]
[330546307,1719561163363,-500.0,0.00021369,2]
[330546308,1719561163372,-305.48222991,0.00021369,2]
[330546309,1719561163382,-1285.7,0.00021369,2]
[330546310,1719561163391,-1976.95,0.00021369,2]
[330546311,1719561163402,-508.41694078,0.00021369,2]
[330546312,1719561163411,-1115.81,0.00021369,2]
[330546313,1719561163422,-620.27,0.00021369,2]
[330546314,1719561163432,-215.86585238,0.00021369,2]
[330546315,1719561163441,-1542.91,0.00021369,2]
[330546316,1719561163451,-1980.39,0.00021369,2]
[330546317,1719561163460,-1594.11,0.00021369,2]
[330546318,1719561163470,-500.0,0.00021369,2]
[330546319,1719561163479,-500.0,0.00021369,2]
[330546320,1719561163488,-1240.01,0.00021369,2]
[330546321,1719561163498,-1834.65,0.00021369,2]
[330546322,1719561163507,-1531.63,0.00021369,2]
[330546323,1719561163517,-893.21,0.00021369,2]
[330546324,1719561163527,-532.59,0.00021369,2]
[330546325,1719561163536,-1176.17,0.00021369,2]
[330546326,1719561163545,-4339.37,0.00021369,2]
[330546327,1719561163556,-1096.31,0.00021369,2]
[330546328,1719561163566,-500.0,0.00021369,2]
[330546329,1719561163575,-791.78,0.00021369,2]
[330546330,1719561163700,-333.04802489,0.00021369,2]
[330546331,1719561163710,-500.0,0.00021369,2]
[330546332,1719561163720,-500.0,0.00021369,2]
[330546333,1719561163730,-1124.86,0.00021369,2]
[330546334,1719561163739,-1291.49,0.00021369,2]
[330546335,1719561163748,-504.91,0.00021369,2]
[330546336,1719561163758,-500.0,0.00021369,2]
[330546337,1719561163768,-588.38,0.00021369,2]
[330546338,1719561163777,-1639.09,0.00021369,2]
[330546339,1719561163787,-1924.82,0.00021369,2]
[330546340,1719561163795,-500.0,0.00021369,2]
[330546341,1719561163806,-1061.55,0.00021369,2]
[330546342,1719561163814,-500.0,0.00021369,2]
[330546343,1719561163823,-1465.35,0.00021369,2]
[330546344,1719561163832,-500.0,0.00021369,2]
[330546345,1719561163842,-2089.57,0.00021369,2]
[330546346,1719561163851,-500.0,0.00021369,2]
[330546347,1719561163865,-734.27,0.00021369,2]
[330546348,1719561163875,-500.0,0.00021369,2]
[330546349,1719561163884,-948.23,0.00021369,2]
[330546350,1719561163895,-3576.87,0.00021369,2]
[330546351,1719561163905,-500.0,0.00021369,2]
[330546352,1719561163914,-3780.4,0.00021369,2]
[330546353,1719561163924,-500.0,0.00021369,2]
[330546354,1719561163936,-500.0,0.00021369,2]
[330546355,1719561163945,-3935.43,0.00021369,2]
[330546356,1719561163954,-770.26,0.00021369,2]
[330546357,1719561163964,-946.83,0.00021369,2]
[330546358,1719561163973,-500.0,0.00021369,2]
[330546359,1719561163983,-500.0,0.00021369,2]
[330546360,1719561163991,-950.23,0.00021369,2]
[330546361,1719561164001,-500.0,0.00021369,2]
[330546362,1719561164010,-1446.14,0.00021369,2]
[330546363,1719561164019,-2365.29,0.00021369,2]
[330546364,1719561164029,-4503.97,0.00021369,2]
[330546365,1719561164038,-1659.75,0.00021369,2]
[330546366,1719561164047,-500.0,0.00021369,2]
[330546367,1719561164058,-500.0,0.00021369,2]
[330546368,1719561164070,-3311.36,0.00021369,2]
[330546369,1719561164080,-500.0,0.00021369,2]
[330546370,1719561164089,-1322.58,0.00021369,2]
[330546371,1719561164099,-783.88,0.00021369,2]
[330546372,1719561164108,-1914.45,0.00021369,2]
[330546373,1719561164117,-500.0,0.00021369,2]
[330546374,1719561164127,-500.0,0.00021369,2]
[330546375,1719561164136,-3498.8,0.00021369,2]
[330546376,1719561164146,-1962.72,0.00021369,2]
[330546377,1719561164155,-500.0,0.00021369,2]
[330546378,1719561164164,-500.0,0.00021369,2]
[330546379,1719561164173,-612.16,0.00021369,2]
[330546380,1719561164182,-1641.9,0.00021369,2]
[330546381,1719561164191,-500.0,0.00021369,2]
[330546382,1719561164200,-685.98,0.00021369,2]
[330546383,1719561164208,-637.51,0.00021369,2]
[330546384,1719561164218,-3117.56,0.00021369,2]
[330546385,1719561164227,-1141.3,0.00021369,2]
[330546386,1719561164236,-500.0,0.00021369,2]
[330546387,1719561164244,-4395.4,0.00021369,2]
[330546388,1719561164254,-3602.08,0.00021369,2]
[330546389,1719561164263,-500.0,0.00021369,2]
[330546390,1719561164273,-3970.07,0.00021369,2]
[330546391,1719561164282,-1264.09,0.00021369,2]
[330546392,1719561164292,-2447.28,0.00021369,2]
[330546393,1719561164305,-500.0,0.00021369,2]
[330546394,1719561164314,-500.0,0.00021369,2]
[330546395,1719561164323,-8127.46,0.00021369,2]
[330546396,1719561164332,-3867.01,0.00021369,2]
[330546397,1719561164341,-500.0,0.00021369,2]
[330546398,1719561164350,-764.6,0.00021369,2]
[330546399,1719561164359,-1319.29,0.00021369,2]
[330546400,1719561164368,-384.77216833,0.00021369,2]
[330546401,1719561164377,-2004.62,0.00021369,2]
[330546402,1719561164386,-2128.6,0.00021369,2]
[330546403,1719561164395,-964.57,0.00021369,2]
[330546404,1719561164403,-2955.61,0.00021369,2]
[330546405,1719561164412,-543.13,0.00021369,2]
[330546406,1719561164421,-500.0,0.00021369,2]
[330546407,1719561164430,-5636.27,0.00021369,2]
[330546408,1719561164441,-4918.69,0.00021369,2]
[330546409,1719561164450,-4066.1,0.00021369,2]
[330546410,1719561164459,-664.5,0.00021369,2]
[330546411,1719561164468,-4196.26,0.00021369,2]
[330546412,1719561164478,-2426.91,0.00021369,2]
[330546413,1719561164487,-500.0,0.00021369,2]
[330546414,1719561164496,-500.0,0.00021369,2]
[330546415,1719561164506,-500.0,0.00021369,2]
[330546416,1719561164515,-571.57,0.00021369,2]
[330546417,1719561164524,-619.41,0.00021369,2]
[330546418,1719561164534,-1310.02,0.00021369,2]
[330546419,1719561164543,-3529.65,0.00021369,2]
[330546420,1719561164554,-790.68,0.00021369,2]
[330546421,1719561164563,-1259.18,0.00021369,2]
[330546422,1719561164573,-619.16731327,0.00021369,2]
[330546423,1719561164583,-803.47,0.00021369,2]
[330546424,1719561164593,-1996.62,0.00021369,2]
[330546425,1719561164603,-500.0,0.00021369,2]
[330546426,1719561164612,-3541.7,0.00021369,2]
[330546427,1719561164622,-863.97,0.00021369,2]
[330546428,1719561164631,-530.3,0.00021369,2]
[330546429,1719561164640,-676.52,0.00021369,2]
[330546430,1719561164650,-500.0,0.00021369,2]
[330546431,1719561164659,-731.62,0.00021369,2]
[330546432,1719561164669,-7586.47,0.00021369,2]
[330546433,1719561164679,-500.0,0.00021369,2]
[330546434,1719561164688,-500.0,0.00021369,2]
[330546435,1719561164697,-1475.96,0.00021369,2]
[330546436,1719561164706,-955.45,0.00021369,2]
[330546437,1719561164715,-1270.09,0.00021369,2]
[330546438,1719561164724,-1229.77,0.00021369,2]
[330546439,1719561164733,-500.0,0.00021369,2]
[330546440,1719561164743,-1393.57,0.00021369,2]
[330546441,1719561164752,-2329.0,0.00021369,2]
[330546442,1719561164761,-773.16,0.00021369,2]
[330546443,1719561164771,-986.15,0.00021369,2]
[330546444,1719561164781,-1485.78,0.00021369,2]
[330546445,1719561164790,-1707.42,0.00021369,2]
[330546446,1719561164800,-5063.06,0.00021369,2]
[330546447,1719561164809,-500.0,0.00021369,2]
[330546448,1719561164818,-500.0,0.00021369,2]
[330546449,1719561164828,-768.85,0.00021369,2]
[330546450,1719561164838,-2012.41,0.00021369,2]
[330546451,1719561164847,-921.17,0.00021369,2]
[330546452,1719561164859,-590.51397139,0.00021369,2]
[330546453,1719561164868,-2449.33,0.00021369,2]
[330546454,1719561164878,-2037.45,0.00021369,2]
[330546455,1719561164887,-1779.04,0.00021369,2]
[330546456,1719561164898,-500.0,0.00021369,2]
[330546457,1719561164909,-9301.47,0.00021369,2]
[330546458,1719561164918,-500.0,0.00021369,2]
[330546459,1719561164927,-2900.72,0.00021369,2]
[330546460,1719561164938,-1017.79,0.00021369,2]
[330546461,1719561164948,-526.59,0.00021369,2]
[330546462,1719561164959,-663.42,0.00021369,2]
[330546463,1719561164968,-500.0,0.00021369,2]
[330546464,1719561164979,-674.65,0.00021369,2]
[330546465,1719561164989,-500.0,0.00021369,2]
[330546466,1719561164998,-1420.13,0.00021369,2]
[330546467,1719561165007,-500.0,0.00021369,2]
[330546468,1719561165016,-2537.99,0.00021369,2]
[330546469,1719561165026,-1037.85,0.00021369,2]
[330546470,1719561165036,-3320.06,0.00021369,2]
[330546471,1719561165046,-3319.78,0.00021369,2]
[330546472,1719561165060,-500.0,0.00021369,2]
[330546473,1719561165069,-634.63,0.00021369,2]
[330546474,1719561165083,-500.0,0.00021369,2]
[330546475,1719561165094,-56773.66,0.00021369,2]
[330546476,1719561165103,-555.58,0.00021369,2]
[330546477,1719561165113,-1092.89,0.00021369,2]
[330546478,1719561165124,-625.07,0.00021369,2]
[330546479,1719561165133,-2200.88,0.00021369,2]
[330546480,1719561165142,-510.63,0.00021369,2]
[330546481,1719561165151,-941.38,0.00021369,2]
[330546482,1719561165161,-2030.64,0.00021369,2]
[330546483,1719561165171,-670.5,0.00021369,2]
[330546484,1719561165180,-680.1,0.00021369,2]
[330546485,1719561165189,-500.0,0.00021369,2]
[330546486,1719561165198,-916.14,0.00021369,2]
[330546487,1719561165207,-1305.67,0.00021369,2]
[330546488,1719561165216,-912.19,0.00021369,2]
[330546489,1719561165224,-608.88,0.00021369,2]
[330546490,1719561165234,-2094.61,0.00021369,2]
[330546491,1719561165244,-3883.66,0.00021369,2]
[330546492,1719561165253,-316.4718187,0.00021369,2]
[330546493,1719561165262,-624.72,0.00021369,2]
[330546494,1719561165271,-283.07,0.00021369,2]
[330546495,1719561165280,-575.25,0.00021369,2]
[330546496,1719561165289,-1750.92,0.00021369,2]
[330546497,1719561165299,-500.0,0.00021369,2]
[330546498,1719561165309,-586.86,0.00021369,2]
[330546499,1719561165318,-1644.79,0.00021369,2]
[330546500,1719561165328,-500.0,0.00021369,2]
[330546501,1719561165337,-2077.02,0.00021369,2]
[330546502,1719561165346,-2240.25,0.00021369,2]
[330546503,1719561165356,-3442.26,0.00021369,2]
[330546504,1719561165365,-785.73,0.00021369,2]
[330546505,1719561165374,-2119.76,0.00021369,2]
[330546506,1719561165383,-3279.62,0.00021369,2]
[330546507,1719561165392,-1177.19,0.00021369,2]
[330546508,1719561165402,-500.0,0.00021369,2]
[330546509,1719561165412,-1783.03,0.00021369,2]
[330546510,1719561165421,-2812.36,0.00021369,2]
[330546511,1719561165431,-500.0,0.00021369,2]
[330546512,1719561165440,-500.0,0.00021369,2]
[330546513,1719561165450,-500.0,0.00021369,2]
[330546514,1719561165459,-500.0,0.00021369,2]
[330546515,1719561165469,-751.3,0.00021369,2]
[330546516,1719561165478,-1875.87,0.00021369,2]
[330546517,1719561165487,-5691.14,0.00021369,2]
[330546518,1719561165496,-500.0,0.00021369,2]
[330546519,1719561165506,-3820.4,0.00021369,2]
[330546520,1719561165515,-2181.6,0.00021369,2]
[330546521,1719561165525,-500.0,0.00021369,2]
[330546522,1719561165535,-4551.03,0.00021369,2]
[330546523,1719561165545,-1185.76,0.00021369,2]
[330546524,1719561165557,-500.0,0.00021369,2]
[330546525,1719561165567,-500.0,0.00021369,2]
[330546526,1719561165577,-500.0,0.00021369,2]
[330546527,1719561165587,-500.0,0.00021369,2]
[330546528,1719561165598,-500.0,0.00021369,2]
[330546529,1719561165608,-500.0,0.00021369,2]
[330546530,1719561165618,-3480.66,0.00021369,2]
[330546531,1719561165627,-500.0,0.00021369,2]
[330546532,1719561165637,-1117.03,0.00021369,2]
[330546533,1719561165647,-710.75,0.00021369,2]
[330546534,1719561165657,-2776.49,0.00021369,2]
[330546535,1719561165667,-500.0,0.00021369,2]
[330546536,1719561165676,-1555.15,0.00021369,2]
[330546537,1719561165685,-5613.75,0.00021369,2]
[330546538,1719561165695,-3058.96,0.00021369,2]
[330546539,1719561165704,-500.0,0.00021369,2]
[330546540,1719561165713,-500.0,0.00021369,2]
[330546541,1719561165722,-820.14,0.00021369,2]
[330546542,1719561165732,-5538.45,0.00021369,2]
[330546543,1719561165742,-918.65,0.00021369,2]
[330546544,1719561165751,-825.28,0.00021369,2]
[330546545,1719561165761,-515.83,0.00021369,2]
[330546546,1719561165770,-841.57,0.00021369,2]
[330546547,1719561165780,-500.0,0.00021369,2]
[330546548,1719561165789,-500.0,0.00021369,2]
[330546549,1719561165798,-4616.67,0.00021369,2]
[330546550,1719561165808,-592.24,0.00021369,2]
[330546551,1719561165817,-10383.18,0.00021369,2]
[330546552,1719561165827,-500.0,0.00021369,2]
[330546553,1719561165836,-500.0,0.00021369,2]
[330546554,1719561165845,-1439.93,0.00021369,2]
[330546555,1719561165856,-1039.73,0.00021369,2]
[330546556,1719561165868,-887.72,0.00021369,2]
[330546557,1719561165877,-6117.5,0.00021369,2]
[330546558,1719561165886,-1863.96,0.00021369,2]
[330546559,1719561165895,-3531.61,0.00021369,2]
[330546560,1719561165906,-1143.1,0.00021369,2]
[330546561,1719561165915,-500.0,0.00021369,2]
[330546562,1719561165924,-500.0,0.00021369,2]
[330546563,1719561165934,-1362.09,0.00021369,2]
[330546564,1719561165943,-500.0,0.00021369,2]
[330546565,1719561165953,-3216.0,0.00021369,2]
[330546566,1719561165963,-500.0,0.00021369,2]
[330546567,1719561165972,-1155.64,0.00021369,2]
[330546568,1719561165981,-23179.74,0.00021369,2]
[330546569,1719561165991,-3529.87,0.00021369,2]
[330546570,1719561166000,-16559.11,0.00021369,2]
[330546571,1719561166009,-3804.04,0.00021369,2]
[330546572,1719561166019,-500.0,0.00021369,2]
[330546573,1719561166028,-850.77,0.00021369,2]
[330546574,1719561166037,-1207.75,0.00021369,2]
[330546575,1719561166047,-500.0,0.00021369,2]
[330546576,1719561166058,-932.07,0.00021369,2]
[330546577,1719561166068,-1059.78,0.00021369,2]
[330546578,1719561166078,-2084.87,0.00021369,2]
[330546579,1719561166088,-500.0,0.00021369,2]
[330546580,1719561166098,-2749.65,0.00021369,2]
[330546581,1719561166108,-12501.51,0.00021369,2]
[330546582,1719561166117,-547.83,0.00021369,2]
[330546583,1719561166127,-736.84,0.00021369,2]
[330546584,1719561166137,-1431.47,0.00021369,2]
[330546585,1719561166147,-500.0,0.00021369,2]
[330546586,1719561166156,-607.13,0.00021369,2]
[330546587,1719561166165,-2419.31,0.00021369,2]
[330546588,1719561166174,-500.0,0.00021369,2]
[330546589,1719561166183,-694.49,0.00021369,2]
[330546590,1719561166192,-500.0,0.00021369,2]
[330546591,1719561166202,-500.0,0.00021369,2]
[330546592,1719561166213,-1192.09,0.00021369,2]
[330546593,1719561166223,-9353.15,0.00021369,2]
[330546594,1719561166232,-498.91448023,0.00021369,2]
[330546595,1719561166241,-500.0,0.00021369,2]
[330546596,1719561166250,-1830.13,0.00021369,2]
[330546597,1719561166259,-14843.86,0.00021369,2]
[330546598,1719561166268,-8136.93,0.00021369,2]
[330546599,1719561166278,-500.0,0.00021369,2]
[330546600,1719561166288,-917.05,0.00021369,2]
[330546601,1719561166298,-500.0,0.00021369,2]
[330546602,1719561166309,-524.36,0.00021369,2]
[330546603,1719561166319,-1404.66,0.00021369,2]
[330546604,1719561166328,-500.0,0.00021369,2]
[330546605,1719561166337,-687.75,0.00021369,2]
[330546606,1719561166346,-412.38657563,0.00021369,2]
[330546607,1719561166356,-590.48,0.00021369,2]
[330546608,1719561166366,-9718.8,0.00021369,2]
[330546609,1719561166375,-500.0,0.00021369,2]
[330546610,1719561166386,-2153.44,0.00021369,2]
[330546611,1719561166395,-1961.45,0.00021369,2]
[330546612,1719561166404,-500.0,0.00021369,2]
[330546613,1719561166413,-2726.91,0.00021369,2]
[330546614,1719561166422,-500.0,0.00021369,2]
[330546615,1719561166432,-30319.25,0.00021369,2]
[330546616,1719561166443,-977.64,0.00021369,2]
[330546617,1719561166453,-392.31918125,0.00021369,2]
[330546618,1719561166463,-510.83,0.00021369,2]
[330546619,1719561166473,-627.05,0.00021369,2]
[330546620,1719561166483,-1308.73,0.00021369,2]
[330546621,1719561166492,-1727.28,0.00021369,2]
[330546622,1719561166504,-500.0,0.00021369,2]
[330546623,1719561166514,-500.0,0.00021369,2]
[330546624,1719561166525,-971.07,0.00021369,2]
[330546625,1719561166534,-500.0,0.00021369,2]
[330546626,1719561166544,-4237.77,0.00021369,2]
[330546627,1719561166554,-1351.8,0.00021369,2]
[330546628,1719561166564,-2837.45,0.00021369,2]
[330546629,1719561166573,-2608.81,0.00021369,2]
[330546630,1719561166583,-500.0,0.00021369,2]
[330546631,1719561166592,-4285.86,0.00021369,2]
[330546632,1719561166602,-500.0,0.00021369,2]
[330546633,1719561166611,-1262.6,0.00021369,2]
[330546634,1719561166621,-1433.34,0.00021369,2]
[330546635,1719561166630,-500.0,0.00021369,2]
[330546636,1719561166640,-500.0,0.00021369,2]
[330546637,1719561166649,-2531.85,0.00021369,2]
[330546638,1719561166659,-8252.27,0.00021369,2]
[330546639,1719561166668,-500.0,0.00021369,2]
[330546640,1719561166677,-6336.99,0.00021369,2]
[330546641,1719561166687,-12890.69,0.00021369,2]
[330546642,1719561166696,-2352.32,0.00021369,2]
[330546643,1719561166707,-500.0,0.00021369,2]
[330546644,1719561166716,-545.53,0.00021369,2]
[330546645,1719561166725,-5449.9,0.00021369,2]
[330546646,1719561166734,-8509.27,0.00021369,2]
[330546647,1719561166743,-1047.12,0.00021369,2]
[330546648,1719561166753,-1711.25,0.00021369,2]
[330546649,1719561166762,-2403.33,0.00021369,2]
[330546650,1719561166772,-500.0,0.00021369,2]
[330546651,1719561166781,-1089.03,0.00021369,2]
[330546652,1719561166792,-500.0,0.00021369,2]
[330546653,1719561166802,-9077.06,0.00021369,2]
[330546654,1719561166811,-500.0,0.00021369,2]
[330546655,1719561166820,-500.0,0.00021369,2]
[330546656,1719561166830,-500.0,0.00021369,2]
[330546657,1719561166840,-2100.4,0.00021369,2]
[330546658,1719561166849,-1206.84,0.00021369,2]
[330546659,1719561166866,-2043.62,0.00021369,2]
[330546660,1719561166876,-48268.7,0.00021369,2]
[330546661,1719561166886,-3104.35,0.00021369,2]
[330546662,1719561166899,-500.0,0.00021369,2]
[330546663,1719561166910,-500.0,0.00021369,2]
[330546664,1719561166921,-521.68,0.00021369,2]
[330546665,1719561166932,-1571.3,0.00021369,2]
[330546666,1719561166941,-949.58,0.00021369,2]
[330546667,1719561166951,-1255.94,0.00021369,2]
[330546668,1719561166961,-4077.23,0.00021369,2]
[330546669,1719561166972,-602.61,0.00021369,2]
[330546670,1719561166983,-11111.01,0.00021369,2]
[330546671,1719561166992,-500.0,0.00021369,2]
[330546672,1719561167003,-1358.81,0.00021369,2]
[330546673,1719561167013,-500.0,0.00021369,2]
[330546674,1719561167022,-1300.0,0.00021369,2]
[330546675,1719561167032,-1332.94,0.00021369,2]
[330546676,1719561167042,-1544.91,0.00021369,2]
[330546677,1719561167052,-712.95,0.00021369,2]
[330546678,1719561167063,-1446.93,0.00021369,2]
[330546679,1719561167072,-42236.37,0.00021369,2]
[330546680,1719561167082,-707.93,0.00021369,2]
[330546681,1719561167092,-850.09,0.00021369,2]
[330546682,1719561167102,-2886.12,0.00021369,2]
[330546683,1719561167113,-945.42,0.00021369,2]
[330546684,1719561167123,-500.0,0.00021369,2]
[330546685,1719561167132,-500.0,0.00021369,2]
[330546686,1719561167141,-13133.43,0.00021369,2]
[330546687,1719561167150,-594.36,0.00021369,2]
[330546688,1719561167160,-1924.21,0.00021369,2]
[330546689,1719561167170,-1289.14,0.00021369,2]
[330546690,1719561167180,-12586.2,0.00021369,2]
[330546691,1719561167191,-500.0,0.00021369,2]
[330546692,1719561167201,-5222.3,0.00021369,2]
[330546693,1719561167210,-768.96,0.00021369,2]
[330546694,1719561167221,-2337.53,0.00021369,2]
[330546695,1719561167233,-831.9,0.00021369,2]
[330546696,1719561167244,-500.0,0.00021369,2]
[330546697,1719561167255,-500.0,0.00021369,2]
[330546698,1719561167265,-5851.92,0.00021369,2]
[330546699,1719561167274,-500.0,0.00021369,2]
[330546700,1719561167284,-628.24,0.00021369,2]
[330546701,1719561167296,-500.0,0.00021369,2]
[330546702,1719561167307,-500.0,0.00021369,2]
[330546703,1719561167316,-598.11,0.00021369,2]
[330546704,1719561167328,-603.56,0.00021369,2]
[330546705,1719561167337,-1283.39,0.00021369,2]
[330546706,1719561167347,-1699.87,0.00021369,2]
[330546707,1719561167356,-2793.12,0.00021369,2]
[330546708,1719561167366,-671.55,0.00021369,2]
[330546709,1719561167375,-4870.14,0.00021369,2]
[330546710,1719561167384,-500.0,0.00021369,2]
[330546711,1719561167394,-540.72,0.00021369,2]
[330546712,1719561167403,-500.0,0.00021369,2]
[330546713,1719561167413,-721.87,0.00021369,2]
[330546714,1719561167422,-966.94,0.00021369,2]
[330546715,1719561167431,-500.0,0.00021369,2]
[330546716,1719561167441,-408.10756339,0.00021369,2]
[330546717,1719561167451,-505.4,0.00021369,2]
[330546718,1719561167460,-704.49,0.00021369,2]
[330546719,1719561167470,-500.0,0.00021369,2]
[330546720,1719561167480,-1685.84,0.00021369,2]
[330546721,1719561167489,-2147.27,0.00021369,2]
[330546722,1719561167499,-500.0,0.00021369,2]
[330546723,1719561167509,-500.0,0.00021369,2]
[330546724,1719561167519,-4610.65,0.00021369,2]
[330546725,1719561167529,-574.19,0.00021369,2]
[330546726,1719561167538,-3996.23,0.00021369,2]
[330546727,1719561167548,-500.0,0.00021369,2]
[330546728,1719561167560,-2065.71,0.00021369,2]
[330546729,1719561167570,-3987.89,0.00021369,2]
[330546730,1719561167579,-587.38,0.00021369,2]
[330546731,1719561167589,-687.46,0.00021369,2]
[330546732,1719561167598,-1330.45,0.00021369,2]